[Event "106th British-ch 2019"]
[Site "Torquay"]
[Date "2019.07.27"]
[Round "1.14"]
[White "Rocco, Federico"]
[Black "Wadsworth, Matthew J"]
[Result "1-0"]
[ECO "B47"]
[WhiteElo "2157"]
[BlackElo "2418"]
[Annotator "NA"]
[PlyCount "119"]
[EventDate "2019.07.27"]
[EventType "swiss"]
[EventCountry "GBR"]
[SourceTitle "playchess.com"]
[Source "ChessBase"]
[SourceQuality "1"]
[TimeControl "40/5400+30:1800+30"]

1. e4 {[%emt 0:00:00]} c5 {[%emt 0:00:00]} 2. Nf3 {[%emt 0:00:00]} e6 {[%emt 0:00:00]} 3. d4 {[%emt 0:00:00]} cxd4 {[%emt 0:00:00]} 4. Nxd4 {[%emt 0:00:00]} Nc6 {[%emt 0:00:13]} 5. Nc3 {[%emt 0:00:00]} Qc7 {[%emt 0:00:15]} 6. g3 {[%emt 0:00:03]} a6 {[%emt 0:01:00]} 7. Bg2 {[%emt 0:00:06]} Nf6 {[%emt 0:00:16]} 8. O-O {[%emt 0:01:18]} Nxd4 {[%emt 0:00:30]} 9. Qxd4 {[%emt 0:00:05]} Bc5 {[%emt 0:00:12]} 10. Bf4 {[%emt 0:00:05]} d6 {[%emt 0:00:39]} 11. Qd2 {[%emt 0:00:06]} h6 {[%emt 0:00:10]} 12. Rad1 {[%emt 0:00:13]} e5 {[%emt 0:00:26]} 13. Be3 {[%emt 0:00:05]} Bb4 {[%emt 0:00:08]} 14. a3 {[%emt 0:06:05]} Bxc3 {[%emt 0:00:44]} 15. Qxc3 {[%emt 0:02:08]} Qxc3 {[%emt 0:00:41]} 16. bxc3 {[%emt 0:00:07]} Be6 {[%emt 0:00:56]} 17. Rxd6 {[%emt 0:00:31]} Rc8 {[%emt 0:00:38]} 18. Rb1 {[%emt 0:00:39]} Rxc3 {[%emt 0:14:11]} 19. Rxb7 {[%emt 0:15:34]} O-O {[%emt 0:01:53]} 20. Ra7 {[%emt 0:06:31]} Ng4 {[%emt 0:02:53]} 21. Bd2 {[%emt 0:00:00]} Rxa3 {[%emt 0:01:12]} 22. Bf1 {[%emt 0:13:34]} Rc8 {[%emt 0:25:24]} 23. Bd3 {[%emt 0:02:59]} Ra1+ {[%emt 0:03:01]} 24. Kg2 {[%emt 0:00:10]} Nf6 {[%emt 0:09:33]} 25. Rdxa6 {[%emt 0:01:10]} Rd1 {[%emt 0:03:30]} 26. Bb4 {[%emt 0:04:33]} Bc4 {[%emt 0:11:09]} 27. Rd6 {[%emt 0:06:03]} Be6 {[%emt 0:03:35]} 28. Ra5 {[%emt 0:08:56]} Rb8 {[%emt 0:09:07]} 29. c3 {[%emt 0:01:03]} Ne8 {[%emt 0:00:59]} 30. Rxe6 {[%emt 0:00:49]} fxe6 {[%emt 0:00:29]} 31. Bc4 {[%emt 0:00:05]} Nf6 {[%emt 0:03:09]} 32. Rxe5 {[%emt 0:00:58]} Re1 {[%emt 0:01:21]} 33. Bxe6+ {[%emt 0:00:13]} Kh8 {[%emt 0:00:07]} 34. Bf5 {[%emt 0:00:16]} Re2 {[%emt 0:01:10]} 35. Bc5 {[%emt 0:00:43]} Rb5 {[%emt 0:02:49]} 36. Kf3 {[%emt 0:00:13]} Rc2 {[%emt 0:01:15]} 37. Bd4 {[%emt 0:00:07]} Rxe5 {[%emt 0:00:59]} 38. Bxe5 {[%emt 0:00:05]} Kg8 {[%emt 0:00:30]} 39. Bd4 {[%emt 0:00:06]} Rc1 {[%emt 0:00:44]} 40. e5 {[%emt 0:00:08]} Ne8 {[%emt 0:00:21]} 41. Be6+ {[%emt 0:31:06]} Kh8 {[%emt 0:30:55]} 42. Bf7 {[%emt 0:00:12]} Nc7 {[%emt 0:00:39]} 43. e6 {[%emt 0:00:21]} Re1 {[%emt 0:01:33]} 44. Be3 {[%emt 0:00:06]} Nd5 {[%emt 0:00:40]} 45. c4 {[%emt 0:00:48]} Ne7 {[%emt 0:01:34]} 46. h4 {[%emt 0:01:18]} Kh7 {[%emt 0:01:44]} 47. Bd2 {[%emt 0:00:48]} Re5 {[%emt 0:00:30]} 48. Bc3 {[%emt 0:00:35]} Rf5+ {[%emt 0:00:11]} 49. Ke3 {[%emt 0:00:55]} Rc5 {[%emt 0:01:46]} 50. Kd3 {[%emt 0:02:03]} Nc6 {[%emt 0:00:09]} 51. h5 {[%emt 0:01:44]} Kh8 {[%emt 0:00:16]} 52. f4 {[%emt 0:01:15]} Kh7 {[%emt 0:00:46]} 53. g4 {[%emt 0:00:33]} Kh8 {[%emt 0:01:51]} 54. g5 {[%emt 0:00:12]} Kh7 {[%emt 0:00:37]} 55. Bg6+ {[%emt 0:00:15]} Kg8 {[%emt 0:00:30]} 56. gxh6 {[%emt 0:05:11]} gxh6 {[%emt 0:02:40]} 57. f5 {[%emt 0:00:00]} Kf8 {[%emt 0:00:00]} 58. f6 {[%emt 0:00:56]} Rg5 {[%emt 0:00:53]} 59. e7+ {[%emt 0:00:00]} Nxe7 {[%emt 0:00:00]} 60. Bb4 {[%emt 0:00:00]} 1-0

[Event "106th British-ch 2019"]
[Site "Torquay"]
[Date "2019.07.27"]
[Round "1.15"]
[White "Taylor, Adam C"]
[Black "Smith, Andrew Philip"]
[Result "0-1"]
[ECO "A09"]
[WhiteElo "2402"]
[BlackElo "2147"]
[Annotator "NA"]
[PlyCount "80"]
[EventDate "2019.07.27"]
[EventType "swiss"]
[EventCountry "GBR"]
[SourceTitle "playchess.com"]
[Source "ChessBase"]
[SourceQuality "1"]
[TimeControl "40/5400+30:1800+30"]

1. Nf3 {[%emt 0:00:00]} c5 {[%emt 0:00:21]} 2. c4 {[%emt 0:00:00]} Nf6 {[%emt 0:00:17]} 3. g3 {[%emt 0:00:00]} d5 {[%emt 0:00:20]} 4. Bg2 {[%emt 0:00:39]} d4 {[%emt 0:10:07]} 5. b4 {[%emt 0:01:28]} g6 {[%emt 0:01:30]} 6. O-O {[%emt 0:01:54]} Bg7 {[%emt 0:00:19]} 7. d3 {[%emt 0:03:41]} cxb4 {[%emt 0:07:09]} 8. a3 {[%emt 0:00:00]} bxa3 {[%emt 0:04:53]} 9. Qa4+ {[%emt 0:03:48]} Bd7 {[%emt 0:09:34]} 10. Qxa3 {[%emt 0:00:05]} Nc6 {[%emt 0:01:43]} 11. Bb2 {[%emt 0:04:15]} Bf5 {[%emt 0:08:11]} 12. Nbd2 {[%emt 0:11:10]} O-O {[%emt 0:00:00]} 13. Rfb1 {[%emt 0:03:55]} e5 {[%emt 0:12:30]} 14. Ng5 {[%emt 0:02:17]} Re8 {[%emt 0:06:20]} 15. Nge4 {[%emt 0:01:27]} Nxe4 {[%emt 0:01:28]} 16. Nxe4 {[%emt 0:01:15]} Bf8 17. Qb3 {[%emt 0:00:24]} Rb8 {[%emt 0:02:06]} 18. Ba3 {[%emt 0:01:39]} Na5 {[%emt 0:10:04]} 19. Qb5 {[%emt 0:03:36]} Bxe4 {[%emt 0:00:31]} 20. Bxe4 {[%emt 0:02:22]} Bxa3 {[%emt 0:00:35]} 21. Rxa3 {[%emt 0:00:13]} b6 {[%emt 0:15:17]} 22. c5 {[%emt 0:13:04]} Nb7 {[%emt 0:12:06]} 23. c6 {[%emt 0:05:31]} Nd6 {[%emt 0:00:00]} 24. Qd5 {[%emt 0:07:08]} Nxe4 {[%emt 0:00:00]} 25. dxe4 {[%emt 0:00:04]} Qc7 {[%emt 0:00:00]} 26. e3 {[%emt 0:09:04]} Rbd8 {[%emt 0:00:00]} 27. Qb5 {[%emt 0:00:12]} Re6 {[%emt 0:00:00]} 28. Rc1 {[%emt 0:08:16]} Rdd6 {[%emt 0:00:00]} 29. Kg2 {[%emt 0:05:26]} Rxc6 {[%emt 0:00:00]} 30. Rxa7 {[%emt 0:01:43]} Qxa7 {[%emt 0:00:00]} 31. Rxc6 Rxc6 {[%emt 0:00:00]} 32. Qxc6 {[%emt 0:00:07]} Qa5 {[%emt 0:04:05]} 33. exd4 {[%emt 0:03:09]} exd4 {[%emt 0:00:00]} 34. Qf6 {[%emt 0:00:02]} Qc5 {[%emt 0:01:06]} 35. g4 {[%emt 0:03:35]} b5 {[%emt 0:00:00]} 36. g5 {[%emt 0:00:02]} Qc8 {[%emt 0:00:00]} 37. h3 {[%emt 0:04:54]} Qd7 {[%emt 0:00:00]} 38. Qb6 {[%emt 0:00:22]} h6 {[%emt 0:00:00]} 39. f4 {[%emt 0:00:58]} hxg5 {[%emt 0:00:00]} 40. fxg5 {[%emt 0:01:05]} d3 {[%emt 0:00:00]} 0-1

[Event "106th British-ch 2019"]
[Site "Torquay"]
[Date "2019.07.27"]
[Round "1.17"]
[White "Palliser, Richard Jd"]
[Black "Hand, Freddie"]
[Result "1-0"]
[ECO "D26"]
[WhiteElo "2399"]
[BlackElo "2142"]
[Annotator "NA"]
[PlyCount "45"]
[EventDate "2019.07.27"]
[EventType "swiss"]
[EventCountry "GBR"]
[SourceTitle "playchess.com"]
[Source "ChessBase"]
[SourceQuality "1"]
[TimeControl "40/5400+30:1800+30"]

1. d4 {[%emt 0:00:00]} d5 {[%emt 0:00:00]} 2. c4 {[%emt 0:00:00]} dxc4 {[%emt 0:00:20]} 3. Nf3 {[%emt 0:00:00]} Nf6 {[%emt 0:00:03]} 4. e3 {[%emt 0:00:00]} e6 {[%emt 0:00:05]} 5. Bxc4 {[%emt 0:00:00]} a6 {[%emt 0:00:02]} 6. O-O {[%emt 0:00:06]} b5 {[%emt 0:00:44]} 7. Bd3 {[%emt 0:00:18]} Bb7 {[%emt 0:00:04]} 8. a4 {[%emt 0:00:11]} b4 {[%emt 0:00:12]} 9. Nbd2 {[%emt 0:00:43]} c5 {[%emt 0:00:05]} 10. e4 {[%emt 0:01:01]} Nc6 {[%emt 0:00:21]} 11. e5 {[%emt 0:01:05]} Nd7 {[%emt 0:00:45]} 12. Nc4 {[%emt 0:15:19]} Nxd4 {[%emt 0:05:06]} 13. Ng5 {[%emt 0:00:52]} Bd5 {[%emt 0:25:53]} 14. Bf4 {[%emt 0:17:27]} Bxc4 {[%emt 0:17:22]} 15. Bxc4 {[%emt 0:01:07]} Nxe5 {[%emt 0:00:13]} 16. Bxe5 {[%emt 0:16:35]} Qxg5 {[%emt 0:04:12]} 17. Bxd4 {[%emt 0:02:32]} cxd4 {[%emt 0:29:41]} 18. Qf3 {[%emt 0:00:31]} Rd8 {[%emt 0:00:28]} 19. Qc6+ {[%emt 0:00:50]} Ke7 {[%emt 0:00:16]} 20. f4 {[%emt 0:18:01]} Qf5 {[%emt 0:10:18]} 21. Qxa6 {[%emt 0:04:02]} Kf6 {[%emt 0:01:46]} 22. Bd3 {[%emt 0:00:27]} Qxd3 {[%emt 0:00:07]} 23. Qxd3 {[%emt 0:00:03]} 1-0

[Event "106th British-ch 2019"]
[Site "Torquay"]
[Date "2019.07.27"]
[Round "1.18"]
[White "Jones, Steven A"]
[Black "D'costa, Lorin Ar"]
[Result "0-1"]
[ECO "A46"]
[WhiteElo "2117"]
[BlackElo "2396"]
[Annotator "NA"]
[PlyCount "80"]
[EventDate "2019.07.27"]
[EventType "swiss"]
[EventCountry "GBR"]
[SourceTitle "playchess.com"]
[Source "ChessBase"]
[SourceQuality "1"]
[TimeControl "40/5400+30:1800+30"]

1. d4 {[%emt 0:00:00]} Nf6 {[%emt 0:00:03]} 2. Nf3 {[%emt 0:00:25]} e6 {[%emt 0:00:52]} 3. g3 {[%emt 0:00:41]} b5 {[%emt 0:01:35]} 4. Bg2 {[%emt 0:00:52]} Bb7 {[%emt 0:00:15]} 5. O-O {[%emt 0:00:32]} c5 {[%emt 0:01:38]} 6. Bg5 {[%emt 0:00:47]} Be7 {[%emt 0:09:13]} 7. dxc5 {[%emt 0:00:36]} Bxc5 {[%emt 0:00:36]} 8. c3 {[%emt 0:04:09]} a6 {[%emt 0:19:09]} 9. a4 {[%emt 0:09:51]} b4 {[%emt 0:05:53]} 10. cxb4 {[%emt 0:06:29]} Bxb4 {[%emt 0:00:31]} 11. Nbd2 {[%emt 0:15:22]} O-O {[%emt 0:28:07]} 12. Nc4 {[%emt 0:03:26]} d5 {[%emt 0:03:20]} 13. Qb3 {[%emt 0:01:17]} a5 {[%emt 0:02:55]} 14. Nce5 {[%emt 0:00:35]} Ba6 {[%emt 0:10:01]} 15. Nd4 {[%emt 0:26:19]} Qb6 {[%emt 0:04:33]} 16. Rfd1 {[%emt 0:07:11]} Nfd7 {[%emt 0:01:01]} 17. Nxd7 {[%emt 0:05:34]} Nxd7 {[%emt 0:00:04]} 18. Be3 {[%emt 0:02:57]} Qb7 {[%emt 0:02:35]} 19. Qa2 {[%emt 0:01:30]} Rac8 {[%emt 0:00:41]} 20. Rac1 {[%emt 0:00:52]} Ne5 {[%emt 0:01:03]} 21. b3 {[%emt 0:00:28]} Ng4 {[%emt 0:00:31]} 22. Bd2 {[%emt 0:02:04]} Bc5 {[%emt 0:04:02]} 23. e3 {[%emt 0:00:05]} Qb6 {[%emt 0:00:44]} 24. h3 {[%emt 0:02:12]} Ne5 25. Bf1 {[%emt 0:03:28]} Bxf1 {[%emt 0:01:07]} 26. Kxf1 {[%emt 0:00:50]} Nd3 {[%emt 0:00:47]} 27. Rb1 {[%emt 0:02:04]} Bxd4 {[%emt 0:01:10]} 28. exd4 {[%emt 0:00:01]} Qxd4 {[%emt 0:00:48]} 29. Bxa5 {[%emt 0:00:32]} e5 {[%emt 0:00:38]} 30. Bb6 {[%emt 0:01:45]} Qe4 {[%emt 0:00:25]} 31. Kg1 {[%emt 0:00:05]} Qf5 {[%emt 0:00:38]} 32. a5 {[%emt 0:01:59]} e4 {[%emt 0:00:32]} 33. b4 {[%emt 0:00:14]} Rc6 {[%emt 0:00:27]} 34. Be3 {[%emt 0:00:31]} Rfc8 {[%emt 0:00:30]} 35. g4 {[%emt 0:01:06]} Qe5 {[%emt 0:00:32]} 36. Qa1 {[%emt 0:00:14]} Rc3 {[%emt 0:00:26]} 37. Bd2 {[%emt 0:01:05]} Nxf2 {[%emt 0:00:33]} 38. Bxc3 {[%emt 0:00:11]} Qg3+ {[%emt 0:00:08]} 39. Kf1 {[%emt 0:00:07]} Qf3 {[%emt 0:00:38]} 40. Qb2 {[%emt 0:01:17]} Nxd1+ {[%emt 0:00:16]} 0-1

[Event "106th British-ch 2019"]
[Site "Torquay"]
[Date "2019.07.27"]
[Round "1.19"]
[White "Pigott, John C"]
[Black "Krzyzanowski, Patryk"]
[Result "1-0"]
[ECO "B36"]
[WhiteElo "2384"]
[BlackElo "2114"]
[Annotator "NA"]
[PlyCount "93"]
[EventDate "2019.07.27"]
[EventType "swiss"]
[EventCountry "GBR"]
[SourceTitle "playchess.com"]
[Source "ChessBase"]
[SourceQuality "1"]
[TimeControl "40/5400+30:1800+30"]

1. e4 {[%emt 0:28:54]} c5 {[%emt 0:00:20]} 2. Nf3 {[%emt 0:00:18]} g6 {[%emt 0:00:16]} 3. c4 {[%emt 0:00:35]} Nc6 {[%emt 0:00:29]} 4. d4 {[%emt 0:00:13]} cxd4 {[%emt 0:00:14]} 5. Nxd4 {[%emt 0:00:08]} Nf6 {[%emt 0:00:10]} 6. Nc3 {[%emt 0:00:13]} d6 {[%emt 0:00:13]} 7. f3 Nxd4 {[%emt 0:00:36]} 8. Qxd4 Bg7 {[%emt 0:00:21]} 9. Be3 Be6 {[%emt 0:01:27]} 10. Qd2 Rc8 {[%emt 0:04:51]} 11. b3 b5 {[%emt 0:09:09]} 12. e5 Nd7 {[%emt 0:08:31]} 13. Nxb5 Nxe5 {[%emt 0:01:18]} 14. Rd1 a6 {[%emt 0:07:52]} 15. Nd4 Bd7 {[%emt 0:02:05]} 16. Be2 O-O {[%emt 0:06:57]} 17. O-O a5 {[%emt 0:04:22]} 18. Kh1 a4 {[%emt 0:05:37]} 19. f4 {[%emt 0:04:28]} Nc6 {[%emt 0:06:14]} 20. b4 {[%emt 0:03:57]} Nxd4 {[%emt 0:21:21]} 21. Bxd4 {[%emt 0:02:24]} Bxd4 {[%emt 0:01:27]} 22. Qxd4 {[%emt 0:00:06]} Bc6 {[%emt 0:00:14]} 23. a3 {[%emt 0:21:53]} Qc7 {[%emt 0:02:12]} 24. Rfe1 {[%emt 0:02:49]} Rfd8 {[%emt 0:04:59]} 25. Bf1 {[%emt 0:01:58]} Bb7 {[%emt 0:05:01]} 26. Rc1 {[%emt 0:04:38]} Rd7 {[%emt 0:07:27]} 27. Rc3 {[%emt 0:04:30]} Qd8 {[%emt 0:08:31]} 28. Rce3 {[%emt 0:06:06]} Ba6 {[%emt 0:05:48]} 29. f5 {[%emt 0:07:17]} g5 {[%emt 0:04:36]} 30. h4 {[%emt 0:14:13]} h6 {[%emt 0:01:00]} 31. Qg4 {[%emt 0:01:37]} f6 {[%emt 0:01:42]} 32. b5 {[%emt 0:01:14]} Bb7 {[%emt 0:00:22]} 33. Qh5 {[%emt 0:00:21]} e5 {[%emt 0:02:51]} 34. fxe6 {[%emt 0:00:18]} Rg7 {[%emt 0:00:27]} 35. e7 {[%emt 0:01:10]} Qe8 {[%emt 0:00:08]} 36. Qxh6 {[%emt 0:01:11]} f5 {[%emt 0:00:39]} 37. Qe6+ {[%emt 0:00:59]} Kh8 {[%emt 0:00:33]} 38. Qh6+ {[%emt 0:00:28]} Kg8 {[%emt 0:00:21]} 39. Qxd6 {[%emt 0:00:48]} Be4 {[%emt 0:00:18]} 40. Rxe4 {[%emt 0:01:36]} fxe4 {[%emt 0:00:08]} 41. Rxe4 {[%emt 0:01:07]} Qf7 {[%emt 0:00:33]} 42. Qd8+ {[%emt 0:00:45]} Kh7 {[%emt 0:00:25]} 43. Bd3 {[%emt 0:00:22]} Rg8 {[%emt 0:02:38]} 44. Rf4+ {[%emt 0:00:26]} Kh8 {[%emt 0:00:34]} 45. Rxf7 {[%emt 0:00:15]} Rgxd8 {[%emt 0:00:11]} 46. exd8=Q+ {[%emt 0:00:16]} Rxd8 {[%emt 0:00:04]} 47. Be4 {[%emt 0:00:21]} 1-0

[Event "106th British-ch 2019"]
[Site "Torquay"]
[Date "2019.07.27"]
[Round "1.20"]
[White "Modi, Shyam Jagdish"]
[Black "Lane, Gary W"]
[Result "0-1"]
[ECO "E07"]
[WhiteElo "2098"]
[BlackElo "2364"]
[Annotator "NA"]
[PlyCount "60"]
[EventDate "2019.07.27"]
[EventType "swiss"]
[EventCountry "GBR"]
[SourceTitle "playchess.com"]
[Source "ChessBase"]
[SourceQuality "1"]
[TimeControl "40/5400+30:1800+30"]

1. d4 {[%emt 0:00:00]} d5 {[%emt 0:00:00]} 2. c4 {[%emt 0:00:00]} c6 {[%emt 0:00:00]} 3. Nf3 {[%emt 0:00:18]} Nf6 {[%emt 0:00:00]} 4. Qb3 {[%emt 0:00:42]} e6 {[%emt 0:01:35]} 5. g3 {[%emt 0:00:51]} Nbd7 {[%emt 0:00:42]} 6. Bg2 {[%emt 0:01:04]} Be7 {[%emt 0:00:34]} 7. O-O {[%emt 0:01:16]} O-O {[%emt 0:00:12]} 8. Nc3 {[%emt 0:01:42]} a5 {[%emt 0:02:43]} 9. Nd2 {[%emt 0:07:39]} a4 {[%emt 0:03:30]} 10. Qc2 {[%emt 0:15:23]} b5 {[%emt 0:03:19]} 11. cxb5 {[%emt 0:13:09]} cxb5 {[%emt 0:00:09]} 12. a3 {[%emt 0:11:41]} Ba6 {[%emt 0:10:33]} 13. Nf3 {[%emt 0:06:13]} Rc8 {[%emt 0:09:40]} 14. Bg5 {[%emt 0:16:01]} Ne4 {[%emt 0:09:47]} 15. Bxe7 {[%emt 0:00:00]} Qxe7 16. Rfc1 {[%emt 0:00:03]} Nb6 17. Ne5 {[%emt 0:14:34]} f5 {[%emt 0:00:25]} 18. Nd3 {[%emt 0:00:00]} Nc4 {[%emt 0:17:51]} 19. Bxe4 {[%emt 0:00:00]} fxe4 {[%emt 0:01:01]} 20. Nc5 {[%emt 0:00:44]} Rxc5 {[%emt 0:00:28]} 21. dxc5 {[%emt 0:00:04]} Qxc5 {[%emt 0:00:02]} 22. Nd1 {[%emt 0:00:00]} Qe7 {[%emt 0:07:30]} 23. b3 {[%emt 0:02:22]} axb3 {[%emt 0:01:07]} 24. Qxb3 {[%emt 0:00:16]} Qg5 {[%emt 0:00:05]} 25. Ne3 {[%emt 0:02:00]} Qf6 {[%emt 0:07:41]} 26. Nd1 {[%emt 0:00:35]} e3 {[%emt 0:01:07]} 27. f3 {[%emt 0:01:43]} d4 {[%emt 0:00:05]} 28. a4 {[%emt 0:01:12]} Nd2 {[%emt 0:02:57]} 29. Qd3 {[%emt 0:01:02]} Bb7 {[%emt 0:00:25]} 30. f4 {[%emt 0:02:52]} b4 {[%emt 0:15:28]} 0-1

[Event "106th British-ch 2019"]
[Site "Torquay"]
[Date "2019.07.27"]
[Round "1.22"]
[White "Brewer, Callum D"]
[Black "Willow, Jonah B"]
[Result "1/2-1/2"]
[ECO "B22"]
[WhiteElo "2086"]
[BlackElo "2343"]
[Annotator "NA"]
[PlyCount "111"]
[EventDate "2019.07.27"]
[EventType "swiss"]
[EventCountry "GBR"]
[SourceTitle "playchess.com"]
[Source "ChessBase"]
[SourceQuality "1"]
[TimeControl "40/5400+30:1800+30"]

1. e4 {[%emt 0:00:00]} c5 {[%emt 0:00:00]} 2. Nf3 {[%emt 0:00:00]} e6 {[%emt 0:00:05]} 3. c3 {[%emt 0:00:00]} d5 {[%emt 0:00:42]} 4. exd5 {[%emt 0:00:01]} Qxd5 {[%emt 0:00:10]} 5. d4 {[%emt 0:00:06]} Nf6 {[%emt 0:00:10]} 6. Be3 {[%emt 0:00:19]} cxd4 {[%emt 0:00:42]} 7. cxd4 {[%emt 0:00:02]} Bb4+ {[%emt 0:00:12]} 8. Nc3 {[%emt 0:00:06]} Qa5 {[%emt 0:01:49]} 9. Qb3 {[%emt 0:05:16]} b6 {[%emt 0:01:43]} 10. Be2 {[%emt 0:12:59]} Bb7 {[%emt 0:02:20]} 11. O-O {[%emt 0:02:18]} Bxc3 {[%emt 0:02:42]} 12. bxc3 {[%emt 0:01:37]} Nbd7 {[%emt 0:00:31]} 13. c4 {[%emt 0:03:53]} O-O {[%emt 0:02:17]} 14. Rac1 {[%emt 0:09:41]} Rac8 {[%emt 0:07:14]} 15. Nd2 {[%emt 0:20:31]} Qf5 {[%emt 0:04:36]} 16. Bf3 {[%emt 0:06:38]} Bxf3 {[%emt 0:04:41]} 17. Nxf3 {[%emt 0:00:03]} Rc7 {[%emt 0:01:56]} 18. h3 {[%emt 0:03:45]} Rfc8 {[%emt 0:00:45]} 19. Rfd1 {[%emt 0:00:40]} Ne4 {[%emt 0:14:03]} 20. Qb4 {[%emt 0:04:47]} a5 {[%emt 0:09:20]} 21. Qb3 {[%emt 0:05:45]} b5 {[%emt 0:14:04]} 22. c5 {[%emt 0:08:20]} b4 {[%emt 0:00:31]} 23. a3 {[%emt 0:04:27]} Nc3 {[%emt 0:02:59]} 24. Rd2 {[%emt 0:02:01]} Nd5 {[%emt 0:04:11]} 25. Rdc2 {[%emt 0:00:55]} Ra8 {[%emt 0:03:14]} 26. axb4 {[%emt 0:01:11]} Nxb4 {[%emt 0:02:48]} 27. Rc4 {[%emt 0:00:13]} Nd5 {[%emt 0:01:51]} 28. Ra4 {[%emt 0:02:42]} Nb4 {[%emt 0:13:21]} 29. Rca1 {[%emt 0:01:44]} Nc6 {[%emt 0:00:08]} 30. Bd2 {[%emt 0:02:02]} e5 {[%emt 0:02:11]} 31. Bxa5 {[%emt 0:00:13]} Rcc8 {[%emt 0:00:52]} 32. Bc3 {[%emt 0:02:06]} Rab8 {[%emt 0:01:55]} 33. Qc4 {[%emt 0:00:01]} exd4 {[%emt 0:01:41]} 34. Nxd4 {[%emt 0:01:03]} Qxc5 {[%emt 0:00:26]} 35. Qxc5 {[%emt 0:01:00]} Nxc5 {[%emt 0:00:12]} 36. Nxc6 {[%emt 0:00:49]} Nxa4 {[%emt 0:00:36]} 37. Ne7+ {[%emt 0:00:37]} Kf8 {[%emt 0:00:14]} 38. Nxc8 {[%emt 0:00:02]} Nxc3 {[%emt 0:00:04]} 39. Nd6 {[%emt 0:00:19]} Rd8 {[%emt 0:00:28]} 40. Nf5 {[%emt 0:00:37]} g6 {[%emt 0:00:16]} 41. Ne3 {[%emt 0:01:54]} Rd2 {[%emt 0:00:51]} 42. Nc4 {[%emt 0:00:53]} Rd4 {[%emt 0:01:19]} 43. Ne3 {[%emt 0:00:48]} Ne4 {[%emt 0:01:49]} 44. f3 {[%emt 0:02:59]} Nc3 {[%emt 0:01:13]} 45. Kh2 {[%emt 0:05:38]} Rd2 {[%emt 0:01:08]} 46. Rc1 {[%emt 0:00:55]} Nb5 {[%emt 0:02:17]} 47. Rc2 {[%emt 0:01:08]} Rd3 {[%emt 0:01:58]} 48. Nc4 {[%emt 0:01:03]} Nd4 {[%emt 0:00:20]} 49. Ra2 {[%emt 0:00:29]} Rc3 {[%emt 0:00:57]} 50. Nd6 {[%emt 0:00:48]} Rc6 {[%emt 0:05:10]} 51. Ne4 {[%emt 0:00:29]} f5 {[%emt 0:03:22]} 52. Nf2 {[%emt 0:00:08]} g5 {[%emt 0:02:14]} 53. Kg3 {[%emt 0:01:20]} h5 {[%emt 0:06:58]} 54. h4 {[%emt 0:02:25]} g4 {[%emt 0:02:20]} 55. fxg4 {[%emt 0:00:36]} fxg4 {[%emt 0:00:38]} 56. Kf4 {[%emt 0:00:36]} 1/2-1/2

[Event "106th British-ch 2019"]
[Site "Torquay"]
[Date "2019.07.27"]
[Round "1.24"]
[White "Starley, Robert"]
[Black "Bradbury, Neil H"]
[Result "1/2-1/2"]
[ECO "B49"]
[WhiteElo "2058"]
[BlackElo "2322"]
[Annotator "NA"]
[PlyCount "97"]
[EventDate "2019.07.27"]
[EventType "swiss"]
[EventCountry "GBR"]
[SourceTitle "playchess.com"]
[Source "ChessBase"]
[SourceQuality "1"]
[TimeControl "40/5400+30:1800+30"]

1. e4 {[%emt 0:00:00]} c5 {[%emt 0:00:00]} 2. Nf3 {[%emt 0:00:00]} e6 {[%emt 0:00:03]} 3. d4 {[%emt 0:00:00]} cxd4 {[%emt 0:00:11]} 4. Nxd4 {[%emt 0:00:00]} Nc6 {[%emt 0:00:24]} 5. Nc3 {[%emt 0:00:06]} Qc7 {[%emt 0:01:13]} 6. Be3 {[%emt 0:00:21]} a6 {[%emt 0:02:27]} 7. Be2 {[%emt 0:00:27]} Nf6 {[%emt 0:05:39]} 8. O-O {[%emt 0:00:59]} Bb4 {[%emt 0:05:27]} 9. Na4 {[%emt 0:02:10]} Be7 {[%emt 0:21:57]} 10. Nxc6 {[%emt 0:00:30]} bxc6 {[%emt 0:00:43]} 11. Nb6 {[%emt 0:00:18]} Rb8 {[%emt 0:00:22]} 12. Nxc8 {[%emt 0:00:09]} Qxc8 {[%emt 0:00:20]} 13. e5 {[%emt 0:00:42]} Nd5 {[%emt 0:04:33]} 14. Bc1 {[%emt 0:00:39]} Bc5 {[%emt 0:00:24]} 15. c4 {[%emt 0:00:51]} Ne7 {[%emt 0:00:14]} 16. b3 {[%emt 0:00:45]} Qc7 {[%emt 0:08:55]} 17. Bb2 {[%emt 0:00:37]} O-O {[%emt 0:00:09]} 18. Bd3 {[%emt 0:01:15]} Ng6 {[%emt 0:08:05]} 19. Re1 {[%emt 0:00:34]} a5 {[%emt 0:03:42]} 20. Bc2 {[%emt 0:03:57]} a4 {[%emt 0:01:33]} 21. Qf3 {[%emt 0:02:42]} axb3 {[%emt 0:08:01]} 22. axb3 {[%emt 0:00:15]} Ra8 {[%emt 0:00:59]} 23. Qg3 {[%emt 0:01:34]} Qb6 {[%emt 0:03:52]} 24. Red1 {[%emt 0:05:37]} Rxa1 {[%emt 0:02:26]} 25. Rxa1 {[%emt 0:00:17]} Bd4 {[%emt 0:05:28]} 26. Bc3 {[%emt 0:06:33]} Bxc3 {[%emt 0:11:27]} 27. Qxc3 {[%emt 0:00:05]} Qb8 {[%emt 0:00:21]} 28. Ra5 {[%emt 0:02:46]} Qc7 {[%emt 0:01:56]} 29. g3 {[%emt 0:01:09]} Rb8 {[%emt 0:00:46]} 30. h4 {[%emt 0:02:11]} Nf8 {[%emt 0:00:31]} 31. b4 {[%emt 0:05:00]} Qb7 {[%emt 0:01:29]} 32. b5 {[%emt 0:02:01]} cxb5 {[%emt 0:00:38]} 33. Rxb5 {[%emt 0:02:30]} Qc7 {[%emt 0:00:13]} 34. Rxb8 Qxb8 {[%emt 0:00:01]} 35. Qd4 {[%emt 0:02:34]} Qb4 {[%emt 0:01:35]} 36. Bd3 {[%emt 0:04:30]} h6 {[%emt 0:00:59]} 37. Kg2 {[%emt 0:03:11]} Qa4 {[%emt 0:00:27]} 38. Qf4 {[%emt 0:00:43]} Qb4 {[%emt 0:00:30]} 39. Be2 {[%emt 0:00:19]} Ng6 {[%emt 0:00:33]} 40. Qd4 {[%emt 0:00:37]} Nf8 {[%emt 0:00:03]} 41. Bf3 {[%emt 0:31:57]} Qa4 {[%emt 0:02:54]} 42. Be4 {[%emt 0:00:00]} g6 {[%emt 0:02:30]} 43. Bd3 {[%emt 0:00:00]} h5 {[%emt 0:01:11]} 44. g4 {[%emt 0:00:00]} hxg4 {[%emt 0:06:47]} 45. Qxg4 {[%emt 0:00:00]} Qa1 {[%emt 0:00:28]} 46. Qe4 {[%emt 0:00:00]} Qc3 {[%emt 0:00:20]} 47. Be2 {[%emt 0:00:00]} Nh7 {[%emt 0:07:00]} 48. Bd3 {[%emt 0:00:00]} Nf8 {[%emt 0:03:16]} 49. Be2 {[%emt 0:00:00]} 1/2-1/2